bitfinex-derivatives/quotes_BNBF0:USTF0_20250116
["timestamp","ask_amount","ask_price","bid_price","bid_amount"]
[1736989484591,1.89640541,710.94,709.89,1.60373378]
[1736989484797,1.89640541,710.93,709.89,1.60373378]
[1736989485096,1.89640541,710.92,709.89,1.60373378]
[1736989485295,1.89640541,710.91,709.89,1.60373378]
[1736989485494,1.89640541,710.9,709.89,1.60373378]
[1736989485694,1.89640541,710.89,709.89,1.60373378]
[1736989485896,1.1380799,710.88,709.89,1.60373378]
[1736989486096,1.04975023,711.07,709.89,1.60373378]
[1736989486293,3.11059264,711.06,709.89,1.60373378]
[1736989486495,3.11059264,711.05,709.89,1.60373378]
[1736989486699,3.11059264,711.04,709.89,1.60373378]
[1736989486998,3.11059264,711.03,709.89,1.60373378]
[1736989487196,3.11059264,711.02,709.89,1.60373378]
[1736989487398,3.11059264,711.01,709.89,2.72973378]
[1736989487598,3.11059264,711.0,709.89,2.72973378]
[1736989487796,3.11059264,710.99,709.89,2.72973378]
[1736989487998,3.11059264,710.98,709.89,2.72973378]
[1736989488194,1.04975023,711.07,709.89,2.72973378]
[1736989488195,3.11059264,710.97,709.89,2.72973378]
[1736989488402,3.11059264,710.96,709.89,2.72973378]
[1736989488602,3.11078691,710.95,709.9,1.05385224]
[1736989488799,1.04975023,711.06,709.91,0.28172585]
[1736989488800,3.11098307,710.94,709.91,0.28172585]
[1736989489097,1.89725693,710.93,709.91,0.28172585]
[1736989489294,1.89725693,710.92,709.91,0.28172585]
[1736989489494,1.89725693,710.91,709.91,0.28172585]
[1736989489700,1.89725693,710.9,709.94,1.05385224]
[1736989489898,1.89725693,710.89,709.94,1.05385224]
[1736989490197,1.04975023,711.03,709.94,1.33556618]
[1736989490198,1.89725693,710.88,709.94,1.33556618]
[1736989490397,1.89725693,710.87,709.94,1.33556618]
[1736989490593,1.89725693,710.86,709.94,0.28171394]
[1736989490798,1.13859216,710.85,709.94,0.28171394]
[1736989491000,1.04975023,711.02,709.94,0.28171394]
[1736989491196,3.11196736,711.01,709.94,0.28171394]
[1736989491500,1.04975023,711.02,709.94,0.28171394]
[1736989491501,3.11196736,711.0,709.94,0.28171394]
[1736989491693,3.11196736,710.99,709.94,0.28171394]
[1736989491893,3.11196736,710.98,709.94,0.28171394]
[1736989492196,3.11196736,710.97,709.94,0.28171394]
[1736989492398,3.11196736,710.96,709.94,0.28171394]
[1736989492601,3.11196736,710.95,709.94,0.28171394]
[1736989492801,3.11196736,710.94,709.94,0.28171394]
[1736989493002,3.11196736,710.93,709.94,0.28171394]
[1736989493302,3.11327464,710.92,709.94,0.28171394]
[1736989493500,1.89777231,710.91,709.94,0.28171394]
[1736989493700,1.89777231,710.9,709.94,0.28171394]
[1736989494002,1.89777231,710.89,709.94,0.28171394]
[1736989494301,1.89777231,710.88,709.94,0.28171394]
[1736989494498,1.89886527,710.87,709.99,1.05385224]
[1736989494704,1.89886527,710.86,709.99,1.05385224]
[1736989494904,1.89886527,710.85,709.99,1.05385224]
[1736989495101,1.14040905,710.84,709.99,1.05385224]
[1736989495301,1.14052315,710.83,709.99,1.05385224]
[1736989495500,0.28124252,711.13,709.94,0.28171394]
[1736989495501,1.04975023,711.02,709.97,1.05385224]
[1736989495703,3.11642982,711.01,709.97,1.05385224]
[1736989495905,3.11642982,711.0,709.97,1.05385224]
[1736989496201,3.11642982,710.99,709.97,2.17985224]
[1736989496405,1.1405351,710.98,709.97,2.17985224]
[1736989496604,3.11648727,710.97,709.97,2.17985224]
[1736989496804,3.11648727,710.96,709.97,2.17985224]
[1736989497005,3.11648727,710.95,709.97,5.03685224]
[1736989497207,3.11648727,710.94,709.97,5.03685224]
[1736989497499,3.11648727,710.93,709.97,5.03685224]
[1736989497705,3.11648727,710.92,709.97,5.03685224]
[1736989497906,3.11648727,710.91,709.97,5.03685224]
[1736989498206,3.11648727,710.9,709.97,5.03685224]
[1736989498505,3.11648727,710.89,709.97,5.03685224]
[1736989498705,3.11676732,710.88,709.97,5.03685224]
[1736989498898,1.9005167,710.87,709.98,1.05385224]
[1736989499105,1.9005167,710.86,709.98,2.74885224]
[1736989499400,1.9005167,710.85,709.98,4.95585224]
[1736989499602,1.9005167,710.84,709.98,4.95585224]
[1736989499905,0.28124252,711.13,709.98,4.95585224]
[1736989499906,1.9005167,710.83,709.98,3.902]
[1736989500108,1.9005167,710.82,709.98,3.902]
[1736989500303,1.04975023,711.0,709.98,3.902]
[1736989500501,3.11831483,710.99,709.98,3.902]
[1736989500707,3.11831483,710.98,709.98,3.902]
[1736989500909,3.11831483,710.97,709.98,3.902]
[1736989501108,3.11831483,710.96,709.99,1.05385224]
[1736989501406,3.11831483,710.95,709.99,1.05385224]
[1736989501601,3.11831483,710.94,709.99,1.05385224]
[1736989501802,3.11831483,710.93,709.99,1.05385224]
[1736989502008,1.90164615,710.92,710.04,1.05385224]
[1736989502208,1.90164615,710.91,710.04,1.05385224]
[1736989502509,1.90164615,710.9,710.04,1.05385224]
[1736989502703,1.90164615,710.89,710.04,1.05385224]
[1736989502901,0.28124252,711.13,709.98,3.902]
[1736989502902,1.90164615,710.88,709.98,3.902]
[1736989503108,0.28124252,711.13,709.98,3.902]
[1736989503308,3.11639717,711.12,709.98,3.902]
[1736989503608,3.11639717,711.11,709.98,3.902]
[1736989503809,3.11639717,711.1,709.98,3.902]
[1736989504008,3.11639717,711.09,709.98,3.902]
[1736989504202,3.11639717,711.08,709.98,3.902]
[1736989504408,3.11639717,711.07,709.98,3.902]
[1736989504608,0.28124252,711.13,709.98,3.902]
[1736989504609,3.11639717,711.06,709.98,3.902]
[1736989504810,3.11639717,711.05,709.98,3.902]
[1736989505009,3.11639717,711.04,709.98,3.902]
[1736989505208,3.11639717,711.03,709.98,3.902]
[1736989505405,3.11639717,711.02,709.98,3.902]
[1736989505610,3.11639717,711.01,709.98,3.902]
[1736989505811,3.11639717,711.0,709.98,4.18369807]
[1736989506010,3.11639717,710.99,709.98,4.18369807]
[1736989506210,3.11639717,710.98,709.98,4.18369807]
[1736989506408,3.11639717,710.97,709.98,4.18369807]
[1736989506606,1.90047874,710.96,709.98,4.18369807]
[1736989506803,1.90047874,710.95,709.98,4.18369807]
[1736989507010,1.90047874,710.94,709.98,4.18369807]
[1736989507210,1.90047874,710.93,709.98,4.18369807]
[1736989507410,1.90047874,710.92,709.98,4.18369807]
[1736989507612,1.90047874,710.91,709.98,4.18369807]
[1736989507913,1.90047874,710.9,709.98,4.18369807]
[1736989508113,1.90047874,710.89,709.98,4.18369807]
[1736989508312,1.90047874,710.88,709.98,4.18369807]
[1736989508514,1.14052972,710.87,709.98,4.18369807]
[1736989508712,0.28124252,711.13,709.98,4.18369807]
[1736989509013,3.11492919,711.12,709.98,4.18369807]
[1736989509214,3.11492919,711.11,709.98,4.18369807]
[1736989509513,3.11487118,711.1,709.98,4.18369807]
[1736989509714,3.11487118,711.09,709.98,4.18369807]
[1736989510011,3.11513404,711.08,709.98,4.18369807]
[1736989510209,3.11513404,711.07,709.99,0.2816941]
[1736989510416,3.11513404,711.06,709.99,0.2816941]
[1736989510614,3.11513404,711.05,709.99,0.2816941]
[1736989510909,1.89971144,711.04,709.99,0.2816941]
[1736989511113,1.89971144,711.03,709.99,0.2816941]
[1736989511316,1.89971144,711.02,709.99,0.2816941]
[1736989511514,1.89905658,711.01,709.99,0.2816941]
[1736989511708,1.89905658,711.0,709.99,0.2816941]
[1736989511912,1.89905658,710.99,709.99,0.2816941]
[1736989512110,1.89905658,710.98,709.99,0.2816941]
[1736989512314,1.89905658,710.97,709.99,0.2816941]
[1736989512512,1.13941746,710.96,709.99,0.2816941]
[1736989512713,1.04975023,711.34,709.99,0.2816941]
[1736989512916,3.11239899,711.33,709.99,0.2816941]
[1736989513111,3.11239899,711.32,709.99,0.2816941]
[1736989513311,3.11239899,711.31,709.99,0.2816941]
[1736989513510,3.11239899,711.3,709.99,0.2816941]
[1736989513709,3.11239899,711.29,709.99,0.2816941]
[1736989513914,3.11239899,711.28,709.99,0.2816941]
[1736989514217,3.11239899,711.27,709.99,0.2816941]
[1736989514416,3.11239899,711.26,709.99,0.2816941]
[1736989514614,3.11239899,711.25,709.99,0.2816941]
[1736989514917,3.11239899,711.24,709.99,0.2816941]
[1736989515114,3.11239899,711.23,709.99,0.2816941]
[1736989515315,3.11112486,711.22,709.99,0.2816941]
[1736989515513,3.11112486,711.21,709.99,0.2816941]
[1736989515710,3.11112486,711.2,709.99,0.2816941]
[1736989516015,3.1100475,711.19,709.99,0.2816941]
[1736989516214,3.1100475,711.18,709.99,0.2816941]
[1736989516414,3.1100475,711.17,709.99,0.2816941]
[1736989516617,3.1100475,711.16,709.99,0.2816941]
[1736989516810,3.1100475,711.15,709.99,0.2816941]
[1736989517015,1.89661029,711.14,709.99,0.2816941]
[1736989517216,1.04975023,711.4,709.99,0.2816941]
[1736989517416,3.11044135,711.39,709.99,0.2816941]
[1736989517615,3.11044135,711.38,709.99,0.2816941]
[1736989517817,3.11044135,711.37,709.99,0.2816941]
[1736989518018,3.11044135,711.36,709.99,0.2816941]
[1736989518213,3.11044135,711.35,709.99,0.2816941]
[1736989518421,3.11044135,711.34,709.99,0.2816941]
[1736989518720,3.11044135,711.33,709.99,0.2816941]
[1736989518915,3.11044135,711.32,709.99,0.2816941]
[1736989519118,1.89679777,711.31,709.99,0.2816941]
[1736989519318,1.89679777,711.3,709.99,0.2816941]
[1736989519517,1.04975023,711.58,709.99,0.2816941]
[1736989519711,3.10881508,711.57,709.99,0.2816941]
[1736989519916,3.10881508,711.56,709.99,0.2816941]
[1736989520119,3.10881508,711.55,709.99,3.2566941]
[1736989520319,3.10881508,711.54,709.99,4.4456941]
[1736989520621,3.10881508,711.53,709.99,4.4456941]
[1736989520814,3.10881508,711.52,709.99,4.4456941]
[1736989521018,3.10881508,711.51,709.99,4.4456941]
[1736989521319,1.89587517,711.5,709.99,4.4456941]
[1736989521521,1.89587517,711.49,709.99,4.4456941]
[1736989521714,1.89587517,711.48,709.99,4.4456941]
[1736989521913,1.89587517,711.47,709.99,4.4456941]
[1736989522113,1.89587517,711.46,709.99,5.6246941]
[1736989522324,1.04975023,712.1,709.99,5.6246941]
[1736989522521,1.33061754,712.08,709.99,5.6246941]
[1736989522717,0.2808752,712.06,709.99,5.6246941]
[1736989522923,0.25832613,712.05,709.99,5.6246941]
[1736989523321,1.96899051,712.04,709.99,5.6246941]
[1736989523523,2.60665,712.03,709.99,5.6246941]
[1736989523720,3.36395401,712.02,709.99,5.6246941]
[1736989523919,3.36395401,712.01,709.99,5.6246941]
[1736989524121,3.36395401,712.0,709.99,5.6246941]
[1736989524323,3.10562856,711.99,709.99,5.6246941]
[1736989524624,3.36395203,711.98,709.99,5.6246941]
[1736989524827,3.64486274,711.97,709.99,5.6246941]
[1736989525125,3.64486668,711.96,709.99,5.6246941]
[1736989525425,3.36395203,711.95,709.99,5.6246941]
[1736989525624,3.64487457,711.94,709.99,5.6246941]
[1736989525823,3.36395203,711.93,709.99,5.6246941]
[1736989526125,3.386559,711.92,709.99,5.6246941]
[1736989526327,3.38656294,711.91,709.99,5.6246941]
[1736989526626,3.64489342,711.9,709.99,5.6246941]
[1736989526924,3.38657084,711.89,709.99,5.6246941]
[1736989527125,3.10562856,711.88,709.99,5.6246941]
[1736989527428,3.38657873,711.87,709.99,6.7506941]
[1736989527724,3.38658268,711.86,709.99,6.7506941]
[1736989527924,3.38658662,711.85,709.99,6.7506941]
[1736989528126,3.38659057,711.84,709.99,6.7506941]
[1736989528428,3.10562856,711.83,709.99,6.7506941]
[1736989528621,3.10562856,711.82,709.99,6.7506941]
[1736989528825,3.10562856,711.81,709.99,6.7506941]
[1736989529025,3.1012944,711.8,709.99,6.7506941]
[1736989529227,3.1012944,711.79,709.99,6.7506941]
[1736989529529,3.1012944,711.78,709.99,7.8766941]
[1736989529725,0.28096201,711.84,709.99,7.8766941]
[1736989529726,3.1012944,711.77,709.99,7.8766941]
[1736989530028,3.1012944,711.76,709.99,7.8766941]
[1736989530328,3.1012944,711.75,709.99,7.8766941]
[1736989530527,3.1012944,711.74,709.99,7.8766941]
[1736989530721,3.1012944,711.73,709.99,7.8766941]
[1736989530925,3.1012944,711.72,709.99,7.8766941]
[1736989531127,3.09865973,711.71,709.99,7.8766941]
[1736989531327,3.09865973,711.7,709.99,7.8766941]
[1736989531528,3.09822553,711.69,709.99,7.8766941]
[1736989531723,3.09822553,711.68,709.99,7.8766941]
[1736989531921,3.09822553,711.67,709.99,7.8766941]
[1736989532128,3.09822553,711.66,709.99,7.8766941]
[1736989532430,3.09822553,711.65,709.99,7.8766941]
[1736989532631,3.09822553,711.64,709.99,7.8766941]
[1736989532828,3.09822553,711.63,709.99,7.8766941]
[1736989533024,3.09822553,711.62,709.99,7.8766941]
[1736989533228,0.28096201,711.84,709.99,7.8766941]
[1736989533229,3.09822553,711.61,709.99,7.8766941]
[1736989533430,3.09822553,711.6,709.99,7.8766941]
[1736989533631,3.09822553,711.59,709.99,7.8766941]
[1736989533825,3.09822553,711.58,709.99,7.8766941]
[1736989534130,0.28096201,711.84,709.99,7.8766941]
[1736989534131,3.09822553,711.57,709.99,7.8766941]
[1736989534432,3.09822553,711.56,709.99,7.8766941]
[1736989534632,3.09822553,711.55,709.99,7.8766941]
[1736989534932,3.09822553,711.54,709.99,7.8766941]
[1736989535126,3.09822553,711.53,709.99,7.8766941]
[1736989535331,3.09822553,711.52,709.99,7.8766941]
[1736989535527,3.09822553,711.51,709.99,7.8766941]
[1736989535731,3.09822553,711.5,709.99,7.8766941]
[1736989535932,3.09822553,711.49,709.99,7.8766941]
[1736989536132,1.88947344,711.48,709.99,7.8766941]
[1736989536333,1.88947344,711.47,709.99,7.8766941]
[1736989536528,1.88947344,711.46,709.99,7.8766941]
[1736989536732,1.88947344,711.45,709.99,7.8766941]
[1736989536933,1.88834836,711.44,709.99,7.8766941]
[1736989537132,1.88834836,711.43,709.99,7.8766941]
[1736989537330,1.88834836,711.42,709.99,7.8766941]
[1736989537529,1.88834836,711.41,709.99,7.8766941]
[1736989537733,1.88834836,711.4,709.99,7.8766941]
[1736989537933,1.88834836,711.39,709.99,7.8766941]
[1736989538135,1.88834836,711.38,709.99,7.8766941]
[1736989538330,1.88834836,711.37,709.99,7.8766941]
[1736989538533,1.88834836,711.36,709.99,7.8766941]
[1736989538731,1.1328783,711.35,709.99,7.8766941]
[1736989538935,1.1328783,711.34,709.99,7.8766941]
[1736989539140,0.28096201,711.84,709.99,7.8766941]
[1736989539338,3.35457895,711.83,709.99,7.8766941]
[1736989539537,3.35457895,711.82,709.99,7.8766941]
[1736989539836,1.04975023,712.31,709.99,7.8766941]
[1736989539837,3.6355528,711.81,709.99,7.8766941]
[1736989540037,3.63555734,711.8,709.99,7.8766941]
[1736989540238,3.63556129,711.79,709.99,7.8766941]
[1736989540435,3.63556523,711.78,709.99,7.8766941]
[1736989540636,3.63556918,711.77,709.99,7.8766941]
[1736989540835,3.63557313,711.76,709.99,7.8766941]
[1736989541034,3.63557708,711.75,709.99,7.8766941]
[1736989541237,3.63558102,711.74,709.99,7.8766941]
[1736989541436,3.63558497,711.73,709.99,7.8766941]
[1736989541740,3.63558892,711.72,709.99,7.8766941]
[1736989541938,3.63559287,711.71,709.99,7.8766941]
[1736989542136,3.63559682,711.7,709.99,7.8766941]
[1736989542440,3.63560077,711.69,709.99,7.8766941]
[1736989542641,3.35457954,711.68,709.99,7.8766941]
[1736989542941,3.35458132,711.67,709.99,7.8766941]
[1736989543234,3.35458132,711.66,709.99,7.8766941]
[1736989543439,3.63561941,711.65,709.99,7.8766941]
[1736989543640,3.63562336,711.64,709.99,7.8766941]
[1736989543840,3.35458239,711.63,709.99,7.8766941]
[1736989544042,3.35458239,711.62,709.99,7.8766941]
[1736989544241,3.35458239,711.61,709.99,7.8766941]
[1736989544437,3.35458239,711.6,709.99,7.8766941]
[1736989544633,3.35458239,711.59,709.99,7.8766941]
[1736989544833,3.09620908,711.58,709.99,7.8766941]
[1736989545037,3.09620908,711.57,709.99,7.8766941]
[1736989545235,3.09620908,711.56,709.99,7.8766941]
[1736989545433,3.09620908,711.55,709.99,7.8766941]
[1736989545638,3.09620908,711.54,709.99,7.8766941]
[1736989545940,3.09620908,711.53,709.99,7.8766941]
[1736989546142,3.09620908,711.52,709.99,7.8766941]
[1736989546442,3.09620908,711.51,709.99,7.8766941]
[1736989546637,1.96306313,711.5,709.99,7.8766941]
[1736989546843,3.09690796,711.49,709.99,7.8766941]
[1736989547143,3.09690796,711.48,709.99,7.8766941]
[1736989547441,3.09690796,711.47,709.99,7.8766941]
[1736989547643,3.09690796,711.46,710.01,1.05385224]
[1736989547845,3.09690796,711.45,710.02,0.2816822]
[1736989548039,3.09690796,711.44,710.02,0.2816822]
[1736989548240,3.09690796,711.43,710.02,0.2816822]
[1736989548441,3.09690796,711.42,710.03,1.05385224]
[1736989548640,3.0989806,711.41,710.03,1.05385224]
[1736989548836,3.0989806,711.4,710.04,0.28167427]
[1736989549036,1.88966628,711.39,710.04,2.76467427]
[1736989549238,1.88966628,711.38,710.04,2.76467427]
[1736989549543,1.88966628,711.37,710.04,2.76467427]
[1736989549737,1.88966628,711.36,710.04,2.76467427]
[1736989549943,1.04975023,711.59,710.04,2.76467427]
[1736989549944,1.88966628,711.35,710.04,2.76467427]
[1736989550242,1.88966628,711.34,710.04,2.76467427]
[1736989550444,1.88966628,711.33,710.04,2.76467427]
[1736989550644,1.88966628,711.32,710.04,2.76467427]
[1736989550843,1.88966628,711.31,710.04,2.76467427]
[1736989551042,1.88966628,711.3,710.04,2.76467427]
[1736989551236,1.88966628,711.29,710.04,2.76467427]
[1736989551437,1.88966628,711.28,710.04,2.76467427]
[1736989551638,1.13384483,711.27,710.04,2.76467427]
[1736989551940,1.04975023,711.6,710.04,2.76467427]
[1736989552141,3.10211997,711.59,710.04,2.76467427]
[1736989552341,3.10211997,711.58,710.04,2.76467427]
[1736989552542,3.10226738,711.57,710.04,2.76467427]
[1736989552742,3.10226738,711.56,710.04,2.76467427]
[1736989552937,3.10226738,711.55,710.04,2.76467427]
[1736989553143,3.10226738,711.54,710.04,2.76467427]
[1736989553344,3.10226738,711.53,710.04,2.76467427]
[1736989553544,3.10226738,711.52,710.04,2.76467427]
[1736989553746,3.10226738,711.51,710.04,2.76467427]
[1736989553943,3.10226738,711.5,710.04,2.76467427]
[1736989554246,3.10226738,711.49,710.04,2.76467427]
[1736989554547,3.10226738,711.48,710.04,3.89067427]
[1736989554746,3.10226738,711.47,710.04,3.89067427]
[1736989554947,3.10226738,711.46,710.04,3.89067427]
[1736989555247,3.10226738,711.45,710.04,3.89067427]
[1736989555447,3.10226738,711.44,710.04,3.89067427]
[1736989555647,3.10226738,711.43,710.04,3.89067427]
[1736989555848,3.10226738,711.42,710.04,3.89067427]
[1736989556048,3.10226738,711.41,710.04,3.89067427]
[1736989556342,1.9668018,711.4,710.04,3.89067427]
[1736989556547,3.10316328,711.39,710.04,3.89067427]
[1736989556744,3.10316328,711.38,710.04,3.89067427]
[1736989556949,3.10316328,711.37,710.04,3.89067427]
[1736989557149,3.10316328,711.36,710.04,3.89067427]
[1736989557350,1.04975023,711.57,710.04,3.89067427]
[1736989557351,3.10316328,711.35,710.04,3.89067427]
[1736989557549,3.10316328,711.34,710.04,3.89067427]
[1736989557750,3.10316328,711.33,710.04,3.89067427]
[1736989557949,1.89282371,711.32,710.04,3.89067427]
[1736989558150,1.89282371,711.31,710.04,3.89067427]
[1736989558351,1.89282371,711.3,710.04,3.89067427]
[1736989558553,1.89282371,711.29,710.04,3.89067427]
[1736989558845,1.89282371,711.28,710.04,3.89067427]
[1736989559051,1.89282371,711.27,710.04,3.89067427]
[1736989559352,1.89282371,711.26,710.04,3.89067427]
[1736989559545,1.89282371,711.25,710.04,3.89067427]
[1736989559748,1.89282371,711.24,710.04,3.89067427]
[1736989559950,1.04975023,711.63,710.04,3.89067427]
[1736989560150,3.365218,711.62,710.04,3.89067427]
[1736989560352,3.36519899,711.61,710.04,3.89067427]
[1736989560650,3.36519379,711.6,710.04,3.89067427]
[1736989560844,3.36518294,711.59,710.04,3.89067427]
[1736989561049,3.10680988,711.58,710.04,3.89067427]
[1736989561249,1.04975023,711.62,710.04,3.89067427]
[1736989561250,3.10680988,711.57,710.04,3.89067427]
[1736989561550,3.10680988,711.56,710.04,3.89067427]
[1736989561749,1.04975023,711.56,710.12,1.05385224]
[1736989562044,3.10674764,711.55,710.13,0.28163857]
[1736989562250,3.10674764,711.54,710.13,0.28163857]
[1736989562451,3.10674764,711.53,710.13,0.28163857]
[1736989562651,1.04975023,711.56,710.13,0.28163857]
[1736989562652,3.10674764,711.52,710.13,0.28163857]
[1736989562950,0.28104097,711.64,710.13,0.28163857]
[1736989562951,3.10674764,711.51,710.13,0.28163857]
[1736989563150,3.10674764,711.5,710.13,0.28163857]
[1736989563346,3.10674764,711.49,710.13,0.28163857]
[1736989563552,3.10674764,711.48,710.13,0.28163857]
[1736989563754,3.10674764,711.47,710.16,1.05385224]
[1736989563946,3.10674764,711.46,710.17,0.28162271]
[1736989564146,3.10674764,711.45,710.17,0.28162271]
[1736989564448,3.10674764,711.44,710.17,0.28162271]
[1736989564650,3.10674764,711.43,710.17,0.28162271]
[1736989564850,3.10674764,711.42,710.17,0.28162271]
[1736989565047,3.10674764,711.41,710.17,0.28162271]
[1736989565247,3.10674764,711.4,710.17,0.28162271]
[1736989565445,0.28104097,711.64,710.17,0.28162271]
[1736989565446,3.10674764,711.39,710.17,1.33547495]
[1736989565649,1.8962743,711.38,710.17,1.33547495]
[1736989565951,1.8962743,711.37,710.17,1.33547495]
[1736989566152,1.8962743,711.36,710.17,0.28162271]
[1736989566347,1.8962743,711.35,710.17,0.28162271]
[1736989566549,1.8962743,711.34,710.17,0.28162271]
[1736989566750,1.8962743,711.33,710.17,0.28162271]
[1736989567047,1.8962743,711.32,710.17,0.28162271]
[1736989567247,1.8962743,711.31,710.17,0.28162271]
[1736989567454,1.1380238,711.3,710.17,0.28162271]
[1736989567752,1.1380238,711.29,710.17,0.28162271]
[1736989567951,1.04975023,711.53,710.17,0.28162271]
[1736989568149,3.11047906,711.52,710.17,0.28162271]
[1736989568354,3.11047906,711.51,710.17,0.28162271]
[1736989568552,3.11047906,711.5,710.17,0.28162271]
[1736989568747,3.11047906,711.49,710.17,0.28162271]
[1736989568952,3.11047906,711.48,710.17,0.28162271]
[1736989569148,3.11047906,711.47,710.17,0.28162271]
[1736989569347,3.11047906,711.46,710.17,0.28162271]
[1736989569547,3.11106655,711.45,710.17,0.28162271]
[1736989569750,3.11106655,711.44,710.17,0.28162271]
[1736989569953,3.11106655,711.43,710.17,0.28162271]
[1736989570152,3.11106655,711.42,710.17,0.28162271]
[1736989570349,1.04975023,711.51,710.17,0.28162271]
[1736989570350,3.11106655,711.41,710.17,0.28162271]
[1736989570548,3.11106655,711.4,710.17,0.28162271]
[1736989570753,3.11106655,711.39,710.17,0.28162271]
[1736989570954,3.11106655,711.38,710.17,0.28162271]
[1736989571155,3.11106655,711.37,710.17,0.28162271]
[1736989571354,3.11106655,711.36,710.17,0.28162271]
[1736989571554,3.11289567,711.35,710.17,0.28162271]
[1736989571755,1.04975023,711.51,710.17,0.28162271]
[1736989571756,1.89817922,711.34,710.17,0.28162271]
[1736989571949,1.89817922,711.33,710.17,0.28162271]
[1736989572254,1.89817922,711.32,710.17,0.28162271]
[1736989572455,1.89817922,711.31,710.17,0.28162271]
[1736989572652,1.89817922,711.3,710.17,0.28162271]
[1736989572848,1.89817922,711.29,710.17,0.28162271]
[1736989573057,1.89817922,711.28,710.17,0.28162271]
[1736989573355,1.89817922,711.27,710.17,0.28162271]
[1736989573654,1.89817922,711.26,710.17,0.28162271]
[1736989573847,1.89848133,711.25,710.17,0.28162271]
[1736989574051,1.13898144,711.24,710.17,0.28162271]
[1736989574251,1.04975023,711.5,710.17,1.40762271]
[1736989574252,1.13898144,711.23,710.17,1.40762271]
[1736989574449,1.13898144,711.22,710.17,1.40762271]
[1736989574748,1.04975023,711.49,710.17,1.40762271]
[1736989574947,3.11548685,711.48,710.17,1.40762271]
[1736989575154,3.11548685,711.47,710.17,1.40762271]
[1736989575349,3.11548685,711.46,710.17,1.40762271]
[1736989575554,3.11548685,711.45,710.18,1.05385224]
[1736989575751,3.11548685,711.44,710.18,1.05385224]
[1736989576055,3.11655914,711.43,710.19,0.28161477]
[1736989576249,3.11655914,711.42,710.19,2.49261477]
[1736989576455,3.11655914,711.41,710.19,2.49261477]
[1736989576652,3.11655914,711.4,710.19,2.49261477]
[1736989576852,3.11655914,711.39,710.19,2.49261477]
[1736989577052,3.11655914,711.38,710.19,2.49261477]
[1736989577255,3.11655914,711.37,710.19,2.49261477]
[1736989577556,3.11785044,711.36,710.19,2.49261477]
[1736989577756,3.11785044,711.35,710.19,2.49261477]
[1736989577957,3.11785044,711.34,710.19,2.49261477]
[1736989578258,3.11785044,711.33,710.19,2.49261477]
[1736989578451,3.11785044,711.32,710.19,2.49261477]
[1736989578656,3.11785044,711.31,710.19,2.49261477]
[1736989578855,1.90138186,711.3,710.19,2.49261477]
[1736989579058,1.90138186,711.29,710.19,2.49261477]
[1736989579259,0.76029286,711.28,710.19,2.49261477]
[1736989579565,1.90136778,711.27,710.19,2.49261477]
[1736989579764,1.90136778,711.26,710.19,2.49261477]
[1736989580055,1.14107492,711.25,710.19,2.49261477]
[1736989580261,1.14107492,711.24,710.19,2.49261477]
[1736989580461,1.04975023,711.63,710.19,5.02761477]
[1736989580761,3.11808424,711.62,710.19,5.02761477]
[1736989580962,3.11808424,711.61,710.19,5.02761477]
[1736989581164,3.11808424,711.6,710.19,5.02761477]
[1736989581366,3.11823287,711.59,710.19,5.02761477]
[1736989581566,3.11823287,711.58,710.19,5.02761477]
[1736989581762,3.11823287,711.57,710.19,5.02761477]
[1736989581959,3.11823287,711.56,710.19,5.02761477]
[1736989582166,3.11823287,711.55,710.19,5.02761477]
[1736989582468,3.11823287,711.54,710.19,5.02761477]
[1736989582764,3.11823287,711.53,710.19,5.02761477]
[1736989582965,3.11823287,711.52,710.19,5.02761477]
[1736989583161,3.11823287,711.51,710.19,5.02761477]
[1736989583361,3.11823287,711.5,710.19,5.02761477]
[1736989583564,3.11823287,711.49,710.19,5.02761477]
[1736989583765,3.11825553,711.48,710.19,5.02761477]
[1736989583961,3.11825553,711.47,710.19,5.02761477]
[1736989584162,3.11825553,711.46,710.19,5.02761477]
[1736989584465,3.11825553,711.45,710.19,5.02761477]
[1736989584661,3.11825553,711.44,710.19,5.02761477]
[1736989584965,3.11825553,711.43,710.19,6.15361477]
[1736989585165,3.11825553,711.42,710.19,6.15361477]
[1736989585363,3.11825553,711.41,710.19,6.15361477]
[1736989585565,3.11825553,711.4,710.19,6.15361477]
[1736989585764,3.11825553,711.39,710.19,6.15361477]
[1736989585964,3.11825553,711.38,710.19,6.15361477]
[1736989586159,3.11825553,711.37,710.19,6.15361477]
[1736989586365,3.11825553,711.36,710.19,6.15361477]
[1736989586561,3.11825553,711.35,710.19,6.15361477]
[1736989586766,3.11825553,711.34,710.19,6.15361477]
[1736989586966,0.28104097,711.64,710.19,6.15361477]
[1736989586967,3.11825553,711.33,710.19,6.15361477]
[1736989587269,3.12055431,711.32,710.19,6.15361477]
[1736989587473,3.12064781,711.31,710.19,6.15361477]
[1736989587764,3.12064781,711.3,710.19,6.15361477]
[1736989587969,3.12064781,711.29,710.19,6.15361477]
[1736989588171,3.12076999,711.28,710.19,6.15361477]
[1736989588372,3.12076999,711.27,710.19,6.15361477]
[1736989588572,3.12076999,711.26,710.19,6.15361477]
[1736989588776,3.12076999,711.25,710.19,6.15361477]
[1736989588970,1.90312235,711.24,710.19,6.15361477]